lending/lending_fUSD_20250425
["ID","MTS","AMOUNT","RATE_DAILY","PERIOD"]
[358927693,1745548238745,-424.65,0.00022003,2]
[358927694,1745548238755,-1272.77983761,0.00022245,3]
[358927695,1745548238764,-1738.28982781,0.00022779,2]
[358927696,1745548238775,-4659.23572879,0.00022779,2]
[358927697,1745548238787,-164.99,0.00022801,2]
[358927698,1745548238797,-204.7704457,0.00023,2]
[358927699,1745548238806,-308.0,0.000234,2]
[358927700,1745548238816,-587.0,0.000234,2]
[358927701,1745548238826,-1272.77983761,0.00023417,4]
[358927702,1745548238836,-191.0,0.00023536,2]
[358927703,1745548238847,-164.99,0.00023741,2]
[358927704,1745548238857,-307.56,0.00023836,2]
[358927705,1745548238866,-5039.37415625,0.00024,5]
[358927706,1745548238876,-425.57,0.00024014,2]
[358927707,1745548238886,-1000.0,0.00024234,2]
[358927708,1745548238897,-1272.77983761,0.0002459,5]
[358927709,1745548238907,-596.54,0.00024658,2]
[358927710,1745548238917,-164.99,0.00024682,2]
[358927711,1745548238927,-185.69335369,0.00024753,2]
[358927712,1745548238937,-192.64696835,0.00024764,7]
[358927713,1745548238948,-500.0,0.00024773,2]
[358927714,1745548238958,-180.92928946,0.000248,2]
[358927715,1745548238967,-594990.44250389,0.000248,3]
[358927716,1745548238984,-624.1476786,0.000248,3]
[358927717,1745548239010,-3876.36120751,0.000248,3]
[358927718,1745548239019,-9037.65836358,0.00024864,2]
[358927719,1745548239029,-256.35136942,0.00024873,2]
[358927720,1745548239039,-582.63129289,0.00025,2]
[358927721,1745548239049,-1882.95251996,0.00025,7]
[358927722,1745548239059,-158.0,0.00025488,2]
[358927723,1745548239070,-164.99,0.00025623,2]
[358927724,1745548239084,-1738.28982781,0.00025657,2]
[358927725,1745548239094,-4659.23572879,0.00025657,2]
[358927726,1745548239104,-1272.77983761,0.00025762,6]
[358927727,1745548239116,-499.84914937,0.0002578,2]
[358927728,1745548239125,-425.57,0.00026278,2]
[358927729,1745548239135,-164.99,0.00026564,2]
[358927730,1745548239146,-1000.0,0.00026926,2]
[358927731,1745548239157,-1272.77983761,0.00026934,7]
[358927732,1745548239168,-509.65,0.00027425,30]
[358927733,1745548239178,-249.62769753,0.0002799,2]
[358927734,1745548239187,-1272.77983761,0.00028107,7]
[358927735,1745548239196,-1070.0,0.00028535,5]
[358927736,1745548239206,-1738.28982781,0.00028536,2]
[358927737,1745548239215,-4659.23572879,0.00028536,2]
[358927738,1745548239225,-425.57,0.00028542,2]
[358927739,1745548239235,-5033.76303532,0.00029,2]
[358927740,1745548239244,-1272.77983761,0.00029279,8]
[358927741,1745548239253,-1000.0,0.00029619,2]
[358927742,1745548239263,-2000.0,0.00029927,4]
[358927743,1745548239273,-191.74680107,0.0003,5]
[358927744,1745548239283,-1000.0,0.00030252,5]
[358927745,1745548239293,-1272.77983761,0.00030452,9]
[358927746,1745548239303,-425.57,0.00030806,2]
[358927747,1745548239313,-180.92928943,0.00031246,2]
[358927748,1745548239324,-1738.28982781,0.00031415,2]
[358927749,1745548239334,-4659.23572879,0.00031415,2]
[358927750,1745548239344,-1561.0,0.00031561,2]
[358927751,1745548239354,-1272.77983761,0.00031624,10]
[358927752,1745548239364,-478.88,0.00032,2]
[358927753,1745548239374,-1000.0,0.00032312,2]
[358927754,1745548239383,-1024.56,0.000324,7]
[358927755,1745548239393,-5858.382,0.00032733,2]
[358927756,1745548239402,-877.0,0.00032733,2]
[358927757,1745548239412,-799.0,0.00032733,2]
[358927758,1745548239422,-1272.77983761,0.00032797,10]
[358927759,1745548239432,-150.47,0.00032877,2]
[358927760,1745548239442,-2000.0,0.00032934,4]
[358927761,1745548239453,-425.57,0.0003307,2]
[358927762,1745548239463,-1272.77983761,0.00033969,11]
[358927763,1745548239472,-150.47,0.00033973,2]
[358927764,1745548239487,-478.89,0.00034,2]
[358927765,1745548239497,-1738.28982781,0.00034293,2]
[358927766,1745548239506,-4659.23572879,0.00034293,2]
[358927767,1745548239517,-150.0,0.00034548,10]
[358927768,1745548239527,-26220.24136479,0.0003489,14]
[358927769,1745548239539,-150.47,0.00035068,2]
[358927770,1745548239548,-307.56,0.00035068,2]
[358927771,1745548239558,-1272.77983761,0.00035141,12]
[358927772,1745548239568,-425.57,0.00035334,2]
[358927773,1745548239578,-877.0,0.00035733,2]
[358927774,1745548239589,-796.0,0.00035733,2]
[358927775,1745548239599,-2000.0,0.00035941,4]
[358927776,1745548239609,-478.88034816,0.00036,2]
[358927777,1745548239619,-509.65,0.00036139,30]
[358927778,1745548239628,-150.47,0.00036164,2]
[358927779,1745548239638,-1272.77983761,0.00036314,13]
[358927780,1745548239650,-12178.30601921,0.000366,7]
[358927781,1745548239660,-1819.0,0.000368,5]
[358927782,1745548239671,-1738.28982781,0.00037172,2]
[358927783,1745548239680,-4659.23572879,0.00037172,2]
[358927784,1745548239690,-150.47,0.0003726,2]
[358927785,1745548239700,-1272.77983761,0.00037486,13]
[358927786,1745548239710,-425.57,0.00037598,2]
[358927787,1745548239721,-200.31181895,0.00037619,4]
[358927788,1745548239731,-180.92928943,0.00037692,10]
[358927789,1745548239741,-135289.5094253,0.000378,2]
[358927790,1745548239750,-150.47,0.00038356,2]
[358927791,1745548239759,-2713.58,0.000384,14]
[358927792,1745548239769,-296.29,0.000384,14]
[358927793,1745548239780,-152.0,0.00038588,3]
[358927794,1745548239789,-1272.77983761,0.00038659,14]
[358927795,1745548239799,-877.0,0.00038733,2]
[358927796,1745548239808,-796.0,0.00038733,2]
[358927797,1745548239818,-2000.0,0.00038949,8]
[358927798,1745548239828,-358.8,0.00039,58]
[358927799,1745548239838,-358.799999,0.00039,58]
[358927800,1745548239850,-166.2466192,0.00039,120]
[358927801,1745548239859,-152.0,0.00039278,4]
[358927802,1745548239870,-150.47,0.00039452,2]
[358927803,1745548239879,-211.02258381,0.00039726,15]
[358927804,1745548239889,-1272.77983761,0.00039831,15]
[358927805,1745548239900,-425.57,0.00039861,2]
[358927806,1745548239910,-152.0,0.00039969,5]
[358927807,1745548239920,-599.1006817,0.0004,4]
[358927808,1745548239930,-200.0,0.0004,61]
[358927809,1745548239940,-200.0,0.0004,61]
[358927810,1745548239950,-157.68,0.0004,30]
[358927811,1745548239960,-1738.28982781,0.00040051,15]
[358927812,1745548239970,-4659.23572879,0.00040051,15]
[358927813,1745548239979,-1626.60072045,0.000401,2]
[358927814,1745548239989,-68732.30022426,0.0004013,2]
[358927818,1745548240433,-24447.88,0.00019405,2]
[358927819,1745548240444,-206788.30398015,0.0004013,2]
[358928024,1745548246008,-151.0,0.0003571,2]
[358928025,1745548246018,-963.0,0.00037619,5]
[358928026,1745548246027,-3907.13508736,0.0004013,2]
[358928027,1745548246038,-1504.72459561,0.0004013,2]
[358928028,1745548246178,-4358.36776089,0.0004013,2]
[358928116,1745548320431,500.0,0.00037808,60]
[358928117,1745548321058,200.0,0.0002475,117]
[358928118,1745548321117,200.0,0.0002765,117]
[358928119,1745548321206,200.0,0.0003186,117]
[358928128,1745548441518,200.0,0.0002475,117]
[358928129,1745548441590,200.0,0.00023625,117]
[358928130,1745548441678,200.0,0.00030755,117]
[358928131,1745548481143,250.0,0.00017,2]
[358928132,1745548482209,300.0,0.00019,2]
[358928153,1745549432160,-299.51692814,0.0002,2]
[358928154,1745549432213,-1866.60474,0.0002,2]
[358928321,1745549446160,-2833.87833186,0.0002,2]
[358928322,1745549446170,-200.0,0.00020038,2]
[358928323,1745549446179,-200.0,0.00020075,2]
[358928324,1745549446188,-200.0,0.0002036,2]
[358928325,1745549446199,-350.0,0.00021,2]
[358928326,1745549446209,-200.0,0.00022,2]
[358928327,1745549446218,-200.0,0.00022,2]
[358928328,1745549446227,-204.91,0.000225,2]
[358928329,1745549446237,-299.99,0.00023176,7]
[358928330,1745549446247,-250.0,0.0002475,2]
[358928331,1745549446256,-1132.51000117,0.000274,2]
[358928332,1745549446266,-4432.50490303,0.000274,2]
[358928333,1745549446282,-3128.97165648,0.000274,2]
[358928334,1745549446301,-552.70344049,0.000274,2]
[358928335,1745549446311,-415.38247835,0.00030928,30]
[358928336,1745549446321,-614.74,0.000328,7]
[358928337,1745549446330,-5101.58814236,0.00033362,2]
[358928338,1745549446356,-11788.8873978,0.00033362,2]
[358928339,1745549446539,-931.5518272,0.00033362,2]
[358928442,1745549478620,173.04624,0.00037,60]
[358928443,1745549503169,158.5,0.00037,60]
[358928444,1745549521229,200.0,0.00035397,117]
[358928445,1745549521311,200.0,0.00032771,117]
[358928446,1745549521384,200.0,0.00033561,117]
[358928447,1745549557279,2163.8544191,0.00037,60]
[358928449,1745549641172,200.0,0.000297,117]
[358928450,1745549641232,200.0,0.0002959,117]
[358928451,1745549641289,200.0,0.00032089,117]
[358928455,1745549761570,200.0,0.000297,117]
[358928456,1745549761645,200.0,0.0002959,117]
[358928457,1745549761728,200.0,0.00032169,117]
[358928463,1745549882230,200.0,0.000297,117]
[358928464,1745549882299,200.0,0.0002959,117]
[358928465,1745549882379,200.0,0.0003213,117]
[358928470,1745550003810,200.0,0.000297,117]
[358928471,1745550003850,200.0,0.0002959,117]
[358928472,1745550003929,200.0,0.0003213,117]
[358928473,1745550008309,151.61911635,0.00035651,60]
[358928475,1745550018264,151.61911635,0.00036475,60]
[358928477,1745550029473,151.61911635,0.00037298,60]
[358928479,1745550121535,200.0,0.000297,117]
[358928480,1745550121691,200.0,0.00028945,117]
[358928481,1745550121770,200.0,0.00031358,117]
[358928483,1745550241516,200.0,0.000297,117]
[358928484,1745550241663,200.0,0.00028945,117]
[358928485,1745550241733,200.0,0.00031005,117]
[358928486,1745550270355,500.0,0.000378,60]
[358928487,1745550285554,250.0,0.00017,2]
[358928488,1745550361549,200.0,0.000297,117]
[358928489,1745550361612,200.0,0.00028945,117]
[358928490,1745550361701,200.0,0.00030607,117]
[358928491,1745550482501,200.0,0.000297,117]
[358928492,1745550482588,200.0,0.00028945,117]
[358928493,1745550482657,200.0,0.00030747,117]
[358928536,1745550602229,200.0,0.000297,117]
[358928537,1745550602339,200.0,0.00028895,117]
[358928538,1745550602452,200.0,0.00030867,117]
[358928544,1745550631403,-150.0,0.00027,2]
[358928545,1745550631413,-467.4223,0.0003079,2]
[358928546,1745550631423,-232.0,0.00030889,2]
[358928547,1745550631433,-122.41670383,0.0003089,2]
[358928548,1745550631448,-27642.44984749,0.0003089,2]
[358928549,1745550631458,-758.09558178,0.00032777,2]
[358928550,1745550631468,-5013.55,0.00032877,4]
[358928551,1745550631478,-509.11193516,0.000329,10]
[358928552,1745550631489,-159.87119132,0.00033361,2]
[358928553,1745550631498,-607.265,0.00033386,2]
[358928554,1745550631508,-509.11193504,0.00033624,11]
[358928555,1745550631519,-13300.84341036,0.00034199,2]
[358928556,1745550631529,-368.84,0.000342,7]
[358928557,1745550631539,-158.41079938,0.00034256,2]
[358928558,1745550631549,-796.0,0.00034266,2]
[358928559,1745550631559,-199.42164111,0.00034266,2]
[358928560,1745550631569,-509.11193504,0.00034348,11]
[358928561,1745550631579,-509.11193504,0.00035072,12]
[358928562,1745550631589,-5716.24362442,0.00035586,2]
[358928563,1745550631599,-509.11193504,0.00035797,12]
[358928564,1745550631608,-509.11193504,0.00036521,13]
[358928565,1745550631618,-212.78,0.00036809,2]
[358928566,1745550631628,-500.0,0.00036941,3]
[358928567,1745550631639,-3951.76273675,0.00036954,2]
[358928568,1745550631649,-1000.0,0.00037028,2]
[358928569,1745550631658,-150.0,0.00037042,2]
[358928570,1745550631668,-23900.0,0.00037043,2]
[358928571,1745550631677,-509.11193504,0.00037245,13]
[358928572,1745550631687,-150.47,0.00037293,2]
[358928573,1745550631698,-205.04,0.00037395,2]
[358928574,1745550631707,-150.0,0.00037761,7]
[358928575,1745550631717,-3534.00125652,0.00037825,2]
[358928577,1745550631727,-509.11193504,0.00037969,14]
[358928579,1745550631736,-424.7,0.00037982,30]
[358928581,1745550631746,-555.0,0.000381,7]
[358928583,1745550631756,-155.28,0.00038298,2]
[358928585,1745550631766,-187.56891037,0.00038356,2]
[358928587,1745550631776,-4853.42523392,0.00038469,2]
[358928590,1745550631786,-152.0,0.00038588,3]
[358928592,1745550631796,-509.11193504,0.00038693,14]
[358928594,1745550631807,-358.799999,0.00039,58]
[358928596,1745550631817,-2017.88,0.00039,2]
[358928598,1745550631827,-358.8,0.00039,58]
[358928600,1745550631837,-641.175,0.00039,53]
[358928602,1745550631846,-212.78,0.00039073,2]
[358928604,1745550631856,-152.0,0.00039278,4]
[358928606,1745550631865,-509.11193504,0.00039417,15]
[358928608,1745550631874,-150.47,0.00039659,2]
[358928610,1745550631883,-26730.59,0.0003988,120]
[358928612,1745550631892,-190.7113067,0.0003988,2]
[358928614,1745550631901,-152.0,0.00039969,5]
[358928616,1745550631911,-200.0,0.0004,61]
[358928618,1745550631921,-200.0,0.0004,61]
[358928620,1745550631931,-157.68,0.0004,30]
[358928622,1745550631941,-502.0,0.0004,120]
[358928624,1745550631952,-300.0,0.0004,2]
[358928626,1745550631962,-1000.0,0.0004002,2]
[358928628,1745550631971,-17313.1009,0.0004002,2]
[358928630,1745550631981,-1000.0,0.0004002,2]
[358928632,1745550631990,-2500.0,0.0004002,2]
[358928634,1745550632000,-5421.64105579,0.00040021,2]
[358928636,1745550632010,-931.84714583,0.0004003,15]
[358928638,1745550632020,-556.769,0.0004003,2]
[358928640,1745550632031,-207.4,0.00040051,15]
[358928642,1745550632040,-215.0738,0.00040051,15]
[358928644,1745550632049,-223.0315306,0.00040051,15]
[358928646,1745550632059,-231.28369723,0.00040051,15]
[358928648,1745550632069,-239.84119403,0.00040051,15]
[358928650,1745550632078,-248.71531821,0.00040051,15]
[358928652,1745550632088,-257.91778498,0.00040051,15]
[358928654,1745550632098,-267.46074303,0.00040051,15]
[358928656,1745550632109,-277.35679052,0.00040051,15]
[358928658,1745550632119,-287.61899177,0.00040051,15]
[358928660,1745550632129,-298.26089446,0.00040051,15]
[358928662,1745550632139,-309.29654756,0.00040051,15]
[358928664,1745550632149,-320.74051982,0.00040051,15]
[358928666,1745550632158,-332.60791905,0.00040051,15]
[358928667,1745550632168,-344.91441206,0.00040051,15]
[358928669,1745550632178,-357.6762453,0.00040051,15]
[358928671,1745550632187,-370.91026638,0.00040051,15]
[358928673,1745550632196,-384.63394623,0.00040051,15]
[358928675,1745550632205,-398.86540225,0.00040051,15]
[358928677,1745550632215,-19562.01100526,0.0004011,3]
[358928817,1745550639817,-500.0,0.00036977,2]
[358928818,1745550639828,-4621.30040784,0.0004011,3]
[358928819,1745550639839,-1376.3926621,0.0004012,2]
[358928820,1745550639849,-13403.4820282,0.0004012,2]
[358928821,1745550639859,-7470.4208101,0.0004012,2]
[358928822,1745550639868,-18930.2583867,0.0004012,2]
[358928823,1745550639878,-4323.2255251,0.0004012,2]
[358928824,1745550639889,-72549.9342393,0.0004012,3]
[358928825,1745550639899,-83613.28992081,0.0004013,2]
[358928826,1745550639920,-6000.0,0.0004013,2]
[358928827,1745550639932,-581.34790231,0.0004013,2]
[358928838,1745550642672,-151.0,0.00034022,2]
[358928839,1745550642681,-9149.00000011,0.0004013,2]
[358928873,1745550645348,-3177.5994,0.0004002,2]
[358928874,1745550645358,-3396.27684298,0.0004013,2]
[358928875,1745550645371,-19504.89125468,0.0004013,2]
[358928876,1745550645383,-16799.19462384,0.00040138,3]
[358928877,1745550645403,-1859.1,0.00040138,3]
[358928878,1745550645564,-3526.8602536,0.00040138,3]
[358928879,1745550645580,-930.0,0.00040138,3]
[358928880,1745550645615,-1005.34508347,0.00040138,3]
[358928881,1745550645724,-62.81145219,0.00040138,3]
[358928882,1745550645735,-8030.774898,0.00040259,2]
[358928887,1745550645817,-930.0,0.00040259,2]
[358928894,1745550720862,200.0,0.000352,117]
[358928895,1745550720999,200.0,0.00032604,117]
[358928896,1745550721223,200.0,0.00033209,117]
[358928897,1745550841562,200.0,0.000352,117]
[358928898,1745550841634,200.0,0.00032815,117]
[358928899,1745550841663,200.0,0.00034915,117]
[358928900,1745550910340,308.89580309,0.00037808,60]
[358928901,1745550961555,200.0,0.000352,117]
[358928902,1745550961616,200.0,0.000336,117]
[358928903,1745550961675,200.0,0.00035904,117]
[358928904,1745551081428,200.0,0.000352,117]
[358928905,1745551081530,200.0,0.00032846,117]
[358928906,1745551081617,200.0,0.00034927,117]
[358928909,1745551202093,200.0,0.000352,117]
[358928910,1745551202145,200.0,0.000336,117]
[358928911,1745551202220,200.0,0.00035904,117]
[358928912,1745551322038,200.0,0.000352,117]
[358928913,1745551322083,200.0,0.000336,117]
[358928914,1745551322171,200.0,0.0003586,117]
[358928916,1745551441416,200.0,0.000352,117]
[358928917,1745551441481,200.0,0.000336,117]
[358928918,1745551441553,200.0,0.0003586,117]
[358928924,1745551561328,200.0,0.00022,117]
[358928925,1745551561409,200.0,0.0002595,117]
[358928926,1745551561477,200.0,0.00029974,117]
[358928927,1745551625150,1100.0,0.000196,7]
[358928928,1745551627264,2300.0,0.000197,7]
[358928931,1745551629464,3500.0,0.000198,7]
[358928932,1745551632723,4700.0,0.000199,7]
[358928938,1745551708892,242.76,0.00031769,120]
[358928939,1745551720093,150.0,0.00028,60]
[358928965,1745551831576,-1200.0,0.00019999,2]
[358928966,1745551831586,-135.71801055,0.00019999,2]
[358928967,1745551831632,-164.28198945,0.00019999,2]
[358928968,1745551831641,-165.48187706,0.0002,2]
[358929044,1745551837556,-19566.20887671,0.0002,2]
[358929045,1745551837567,-200.0,0.0002,2]
[358929046,1745551837577,-200.0,0.0002,2]
[358929047,1745551837587,-697272.67663232,0.0002,2]
[358929048,1745551837599,-2494318.525,0.0002,2]
[358929049,1745551837611,-23576.7994,0.0002,2]
[358929050,1745551837623,-11025.91994,0.0002,2]
[358929051,1745551837636,-14331.20000001,0.0002,2]
[358929052,1745551837668,-1700.3237879,0.0002,2]
[358929053,1745551837680,-2035.765428,0.0002,2]
[358929054,1745551837693,-2172.528378,0.0002,2]
[358929055,1745551837704,-2052.2052,0.0002,2]
[358929056,1745551837716,-2063.57616,0.0002,2]
[358929138,1745551840454,-636.26188603,0.0002,2]
[358929139,1745551840627,-227516.89853201,0.0002,2]
[358929140,1745551840636,-43433.30310685,0.0002,2]
[358929157,1745551842605,-9358.58571097,0.0002,2]
[358929188,1745551845921,-5444.76606561,0.0002,2]
[358929189,1745551845932,-3851.27602168,0.0002,2]
[358929190,1745551845944,-3286.6366773,0.0002,2]
[358929191,1745551846030,-6475.91768169,0.0002,2]
[358929192,1745551846043,-28856.89699659,0.0002,2]
[358929193,1745551846055,-20386.52753663,0.0002,2]
[358929275,1745551902775,1001.7,0.00037808,60]
[358929298,1745553037697,-866.847,0.000196,2]
[358929299,1745553037708,-169.33968445,0.000196,2]
[358929300,1745553037717,-200.0,0.00019624,2]
[358929301,1745553037726,-200.0,0.00019649,2]
[358929302,1745553037735,-200.0,0.00019741,2]
[358929303,1745553037744,-1325.0604516,0.000199,2]
[358929304,1745553037753,-551.43864122,0.000199,2]
[358929305,1745553037763,-300.0,0.00019998,2]
[358929306,1745553037772,-300.0,0.00019999,2]
[358929307,1745553037782,-1200.0,0.00019999,2]
[358929308,1745553037791,-559978.58999977,0.0002,2]
[358929309,1745553037801,-185.71598517,0.0002,2]
[358929310,1745553037810,-222.4885789,0.0002,2]
[358929311,1745553037819,-192.64696835,0.00020174,4]
[358929312,1745553037828,-551.53792982,0.000209,3]
[358929313,1745553037837,-234.06,0.00021049,2]
[358929314,1745553037847,-200.0,0.0002156,2]
[358929315,1745553037856,-200.0,0.0002156,2]
[358929316,1745553037866,-200.0,0.00021689,2]
[358929317,1745553037875,-2440.83,0.0002176,2]
[358929318,1745553037884,-20698.74,0.00021775,2]
[358929319,1745553037894,-200.0,0.00021776,2]
[358929320,1745553037903,-420.0,0.00021776,2]
[358929321,1745553037913,-420.0,0.00021777,2]
[358929322,1745553037922,-424.65,0.00021784,2]
[358929323,1745553037931,-1671.25,0.00021796,2]
[358929324,1745553037941,-4349.15,0.00021802,2]
[358929325,1745553037951,-7985.21,0.00021803,2]
[358929326,1745553037961,-285.47,0.0002183,2]
[358929327,1745553037970,-373.0,0.00021881,2]
[358929328,1745553037981,-150.0,0.00021917,2]
[358929329,1745553037993,-181.72,0.00021949,2]
[358929330,1745553038003,-150.0,0.0002199,2]
[358929331,1745553038012,-250.0,0.00021996,2]
[358929332,1745553038023,-250.0,0.00022,2]
[358929333,1745553038032,-250.0,0.00022,2]
[358929334,1745553038042,-5154.78125247,0.00022025,2]
[358929335,1745553038051,-1940.87,0.00022036,2]
[358929336,1745553038061,-551.53792963,0.00022038,3]
[358929337,1745553038070,-154.86,0.00022094,3]
[358929338,1745553038080,-1000.0,0.00022141,2]
[358929339,1745553038089,-150.0,0.00022441,7]
[358929340,1745553038099,-165.55,0.00022521,2]
[358929341,1745553038110,-2522.44,0.00022577,2]
[358929342,1745553038119,-1325.06045152,0.00022784,2]
[358929345,1745553038140,-551.43864115,0.00022784,2]
[358929347,1745553038153,-204.7704457,0.00023,2]
[358929349,1745553038163,-551.53792963,0.00023176,4]
[358929353,1745553038174,-150.0,0.00023287,2]
[358929355,1745553038184,-234.06,0.00023313,2]
[358929358,1745553038198,-308.0,0.00023712,2]
[358929360,1745553038208,-222.13,0.00023836,2]
[358929362,1745553038220,-299.99,0.00024174,7]
[358929364,1745553038229,-3172.84,0.00024174,2]
[358929366,1745553038239,-2055.68,0.00024174,2]
[358929368,1745553038250,-551.53792963,0.00024314,5]
[358929370,1745553038259,-165.55,0.00024379,2]
[358929372,1745553038271,-10501.52104804,0.00024489,2]
[358929374,1745553038281,-298.53183525,0.00024657,2]
[358929376,1745553038291,-596.54,0.00024658,2]
[358929378,1745553038300,-180.92928944,0.000248,2]
[358929380,1745553038310,-76450.98351729,0.000248,3]
[358929381,1745553038324,-105829.13202671,0.000248,3]
[358929382,1745553038333,-26040.0165063,0.0002489,3]
[358929383,1745553038343,-151.0,0.000249,7]
[358929384,1745553038353,-600.0,0.000249,9]
[358929385,1745553038364,-76937.7622442,0.000249,3]
[358929386,1745553038374,-1000.0,0.00024909,2]
[358929387,1745553038384,-1000.0,0.00025,7]
[358929388,1745553038394,-551.53792963,0.00025452,6]
[358929389,1745553038404,-234.06,0.00025577,2]
[358929390,1745553038413,-1325.06045152,0.00025669,2]
[358929391,1745553038423,-551.43864115,0.00025669,2]
[358929392,1745553038433,-250.0,0.0002595,2]
[358929393,1745553038443,-165.55,0.00026238,2]
[358929394,1745553038454,-551.53792963,0.0002659,6]
[358929395,1745553038464,-26040.0165063,0.00027387,3]
[358929396,1745553038474,-500.0,0.00027397,2]
[358929397,1745553038484,-500.0,0.00027397,2]
[358929398,1745553038494,-500.0,0.00027397,2]
[358929399,1745553038504,-500.0,0.00027397,2]
[358929401,1745553038513,-500.0,0.00027397,2]
[358929402,1745553038523,-396.75784,0.00027397,2]
[358929403,1745553038532,-500.0,0.00027397,2]
[358929405,1745553038542,-500.0,0.00027397,2]
[358929407,1745553038552,-500.0,0.00027397,2]
[358929409,1745553038562,-500.0,0.00027397,2]
[358929411,1745553038578,-300.0,0.00027397,2]
[358929413,1745553038587,-559.21,0.00027425,30]
[358929416,1745553038598,-1000.0,0.00027677,2]
[358929418,1745553038607,-551.53792963,0.00027728,7]
[358929420,1745553038618,-234.06,0.00027841,2]
[358929422,1745553038628,-1325.06045152,0.00028553,2]
[358929424,1745553038638,-551.43864115,0.00028553,2]
[358929426,1745553038648,-551.53792963,0.00028866,8]
[358929428,1745553038658,-551.53792963,0.00030003,9]
[358929430,1745553038669,-234.06,0.00030105,2]
[358929432,1745553038679,-1000.0,0.00030444,2]
[358929434,1745553038690,-19234.440561,0.0003096,3]
[358929436,1745553038703,-551.53792963,0.00031141,9]
[358929439,1745553038713,-1325.06045152,0.00031437,2]
[358929441,1745553038723,-551.43864115,0.00031437,2]
[358929443,1745553038733,-150.0,0.00032,2]
[358929445,1745553038743,-551.53792963,0.00032279,10]
[358929447,1745553038754,-234.06,0.00032369,2]
[358929449,1745553038764,-150.47,0.00032877,2]
[358929451,1745553038774,-1000.0,0.00033212,2]
[358929453,1745553038784,-551.53792963,0.00033417,11]
[358929455,1745553038794,-1325.06045152,0.00034322,2]
[358929456,1745553038804,-551.43864115,0.00034322,2]
[358929457,1745553038815,-551.53792963,0.00034555,12]
[358929458,1745553038825,-234.06,0.00034633,2]
[358929459,1745553038834,-222.13,0.00035068,2]
[358929460,1745553038844,-315.65,0.000355,7]
[358929461,1745553038854,-150.47,0.00035616,2]
[358929462,1745553038865,-551.53792963,0.00035693,12]
[358929463,1745553038877,-559.21,0.00036139,30]
[358929464,1745553038889,-551.53792963,0.00036831,13]
[358929465,1745553038899,-234.06,0.00036896,2]
[358929466,1745553038910,-1325.06045152,0.00037206,2]
[358929467,1745553038920,-551.43864115,0.00037206,2]
[358929468,1745553038930,-180.92928944,0.00037282,10]
[358929469,1745553038941,-500.0,0.00037855,2]
[358929470,1745553038952,-1200.0,0.000379,13]
[358929471,1745553038962,-551.53792963,0.00037969,14]
[358929472,1745553038972,-185.69335369,0.00038146,2]
[358929473,1745553038982,-1110.0,0.00038187,5]
[358929474,1745553038992,-1129.5681131,0.00038246,4]
[358929475,1745553039002,-150.47,0.00038356,2]
[358929476,1745553039018,-220.34211885,0.00038356,2]
[358929477,1745553039028,-2454.24,0.000384,14]
[358929478,1745553039038,-26040.0165063,0.00038647,4]
[358929479,1745553039050,-19234.440561,0.00038647,4]
[358929480,1745553039060,-1037.19,0.00038657,7]
[358929481,1745553039071,-1037.19,0.00038657,7]
[358929482,1745553039082,-1037.19,0.00038657,7]
[358929483,1745553039092,-1037.19,0.00038657,7]